bitfinex/quotes_SOLUSD_20250129
["timestamp","ask_amount","ask_price","bid_price","bid_amount"]
[1738158769298,12.77126176,227.28,227.26,0.063]
[1738158769494,12.77126176,227.3,227.26,0.063]
[1738158772009,12.89675176,227.27,227.26,0.063]
[1738158772600,12.77126176,227.27,227.26,0.063]
[1738158774400,12.77126176,227.28,227.26,0.063]
[1738158775809,12.89675176,227.27,227.26,0.063]
[1738158775994,25.66801352,227.27,227.26,0.063]
[1738158776195,12.89675176,227.27,227.26,0.063]
[1738158778516,12.77126176,227.27,227.26,0.063]
[1738158786599,8.18664367,227.27,227.26,0.063]
[1738158789215,8.18664367,227.28,227.26,0.063]
[1738158790223,8.18664367,227.3,227.26,0.063]
[1738158790422,8.21664367,227.31,227.26,0.063]
[1738158791412,8.18664367,227.29,227.26,0.063]
[1738158798126,8.18664367,227.28,227.26,0.063]
[1738158798328,8.18664367,227.27,227.26,0.063]
[1738158799318,8.18664367,227.28,227.26,0.063]
[1738158799520,8.18664367,227.3,227.26,0.063]
[1738158799922,0.03,227.31,227.26,24.090864]
[1738158800234,0.03,227.31,227.28,8.43762367]
[1738158800410,0.03,227.31,227.3,0.25098]
[1738158806536,0.03,227.31,227.26,0.063]
[1738158806537,8.21664367,227.31,227.26,0.063]
[1738158806739,8.18664367,227.29,227.26,0.063]
[1738158808039,90.68664367,227.3,227.26,0.063]
[1738158809346,8.18664367,227.29,227.26,0.063]
[1738158810635,90.68664367,227.3,227.26,0.063]
[1738158811746,82.5,227.29,227.26,0.063]
[1738158812544,82.5,227.29,227.27,0.25098]
[1738158815344,82.5,227.29,227.26,0.063]
[1738158815535,90.68664367,227.29,227.26,0.063]
[1738158815740,82.5,227.29,227.26,0.063]
[1738158816242,82.5,227.29,227.27,8.43762367]
[1738158816447,82.5,227.29,227.27,0.25098]
[1738158816649,82.5,227.29,227.27,24.027864]
[1738158817029,82.5,227.29,227.27,0.25098]
[1738158817225,82.5,227.29,227.27,32.21450767]
[1738158817648,82.5,227.29,227.28,31.96352767]
[1738158819147,0.03,227.31,227.29,24.153354]
[1738158819354,0.03,227.31,227.3,10.00290021]
[1738158819650,0.03,227.31,227.3,1.81625654]
[1738158821653,8.21664367,227.31,227.3,0.25098]
[1738158822160,8.21664367,227.31,227.26,34.62279131]
[1738158822161,8.21664367,227.31,227.26,3.183]
[1738158822355,8.18664367,227.27,227.26,3.183]
[1738158822545,8.18664367,227.27,227.26,3.43398]
[1738158824154,8.18664367,227.27,227.26,0.063]
[1738158825056,8.18664367,227.28,227.26,0.063]
[1738158825266,8.18664367,227.29,227.26,0.31398]
[1738158825756,90.68664367,227.3,227.26,0.31398]
[1738158826142,0.03,227.31,227.29,0.25098]
[1738158826353,0.03,227.31,227.3,24.71864181]
[1738158826557,0.03,227.31,227.3,37.02528548]
[1738158827763,0.03,227.31,227.3,38.78471348]
[1738158827940,0.03,227.31,227.3,37.02528548]
[1738158830664,0.03,227.31,227.3,41.60969828]
[1738158833067,0.03,227.31,227.3,28.83864181]
[1738158833365,0.03,227.31,227.3,5.06175781]
[1738158833771,0.03,227.31,227.3,28.83864181]
[1738158834553,0.03,227.31,227.3,25.71864181]
[1738158834866,0.03,227.31,227.3,28.83864181]
[1738158835062,0.03,227.31,227.3,25.71864181]
[1738158835657,0.03,227.31,227.3,24.59315181]
[1738158836753,0.03,227.31,227.3,1.69077781]
[1738158836969,0.03,227.31,227.3,25.59315181]
[1738158838548,0.03,227.31,227.3,25.71864181]
[1738158841086,0.03,227.31,227.3,30.11804181]
[1738158841253,0.03,227.31,227.3,25.71864181]
[1738158844855,0.03,227.31,227.3,25.78164181]
[1738158847581,0.03,227.31,227.3,0.43947]
[1738158848002,0.03,227.31,227.3,0.31398]
[1738158848166,0.03,227.31,227.3,0.18849]
[1738158848560,0.03,227.31,227.3,0.31398]
[1738158853285,8.20836068,227.31,227.3,0.063]
[1738158857792,20.0,227.27,227.26,0.063]
[1738158858099,28.17836068,227.27,227.26,0.063]
[1738158861486,60.8918034,227.27,227.26,0.063]
[1738158863897,28.17836068,227.27,227.26,0.063]
[1738158864509,61.0172934,227.27,227.26,0.063]
[1738158864704,61.0172934,227.27,227.12,30.0]
[1738158864705,1.5769,227.26,227.12,30.0]
[1738158865013,8.17836068,227.18,227.13,0.25098]
[1738158865210,8.17836068,227.15,227.08,39.5169]
[1738158865390,8.17836068,227.13,227.08,6.3969]
[1738158865589,8.17836068,227.13,227.06,1.0]
[1738158865985,8.17836068,227.15,227.08,0.25098]
[1738158866190,8.17836068,227.17,227.11,0.12549]
[1738158866385,82.5,227.14,227.11,0.12549]
[1738158870127,82.5,227.14,227.1,0.25098]
[1738158870909,8.17836068,227.13,227.08,30.0]
[1738158871109,90.67836068,227.14,227.08,30.0]
[1738158871315,82.5,227.12,227.09,0.25098]
[1738158871516,82.5,227.12,227.09,24.027864]
[1738158871701,82.5,227.12,227.09,0.25098]
[1738158872404,82.5,227.11,227.09,0.25098]
[1738158874427,90.67836068,227.1,227.07,52.323]
[1738158874605,8.17836068,227.08,227.07,52.323]
[1738158875917,8.17836068,227.08,227.07,0.063]
[1738158880821,16.46755068,227.08,227.03,0.063]
[1738158881021,40.8918034,227.04,227.03,0.063]
[1738158881643,8.17836068,227.04,227.03,0.063]
[1738158885933,40.8918034,227.04,227.03,0.063]
[1738158886137,41.0172934,227.04,227.03,0.063]
[1738158888833,8.17836068,227.04,227.03,0.063]
[1738158891053,40.8918034,227.04,227.03,0.063]
[1738158894153,41.0172934,227.04,227.03,0.063]
[1738158895550,41.15081735,227.04,227.03,0.063]
[1738158895849,20.0,227.01,226.93,0.063]
[1738158896050,8.20506547,226.94,226.93,0.063]
[1738158900528,12.8246161,226.94,226.93,0.063]
[1738158901245,12.8246161,226.96,226.93,0.063]
[1738158903448,12.8246161,226.97,226.93,0.063]
[1738158903753,95.3246161,226.99,226.93,0.063]
[1738158903932,12.8246161,226.98,226.93,0.063]
[1738158904339,82.5,226.97,226.93,0.063]
[1738158905043,82.5,227.03,226.99,0.37647]
[1738158905240,82.5,227.03,226.99,36.9779701]
[1738158905842,82.5,227.03,226.99,24.153354]
[1738158907751,0.03,227.07,227.03,0.25098]
[1738158907954,0.03,227.07,227.05,0.25098]
[1738158909638,0.03,227.07,227.06,54.153354]
[1738158909844,0.03,227.07,227.06,66.9779701]
[1738158910857,0.03,227.07,227.06,67.1034601]
[1738158911255,0.03,227.07,227.06,73.6673601]
[1738158911482,0.03,227.07,227.06,75.3185601]
[1738158912065,0.03,227.07,227.06,65.613944]
[1738158912245,0.03,227.07,227.06,35.488454]
[1738158914875,0.03,227.07,227.05,12.8246161]
[1738158914876,0.03,227.07,227.01,1.6492]
[1738158915039,12.8246161,227.05,227.0,6.5232]
[1738158915258,12.8246161,227.03,227.0,6.5232]
[1738158917288,12.8246161,227.06,227.01,0.25098]
[1738158918089,12.8246161,227.05,227.01,0.25098]
[1738158918263,12.8246161,227.04,227.01,0.25098]
[1738158919676,12.8246161,227.04,227.01,24.027864]
[1738158919889,82.5,227.06,227.01,24.027864]
[1738158921303,82.5,227.06,227.02,0.12549]
[1738158921472,82.5,227.06,227.04,0.25098]
[1738158921982,82.5,227.06,227.03,0.25098]
[1738158923097,95.3246161,227.06,227.03,0.25098]
[1738158924400,82.5,227.06,227.02,0.25098]
[1738158924594,82.5,227.05,227.02,0.25098]
[1738158926295,82.5,227.05,227.03,0.12549]
[1738158930712,12.8246161,227.04,226.96,47.5938161]
[1738158930885,12.8246161,227.03,226.97,0.37647]
[1738158931083,12.8246161,226.98,226.93,0.063]
[1738158931277,12.8246161,226.95,226.93,0.063]
[1738158931680,12.8246161,226.97,226.93,0.063]
[1738158931892,12.8246161,226.98,226.94,0.25098]
[1738158932099,12.8246161,227.0,226.94,0.25098]
[1738158932496,82.5,227.02,226.94,0.25098]
[1738158932497,82.5,227.02,226.97,0.12549]
[1738158932817,82.5,227.02,226.97,36.7269901]
[1738158933191,95.3246161,227.02,226.95,12.8246161]
[1738158933403,12.8246161,226.99,226.93,0.063]
[1738158933616,12.8246161,226.98,226.93,0.063]
[1738158934692,12.8246161,226.99,226.93,0.063]
[1738158934893,95.3246161,227.01,226.94,30.12549]
[1738158935093,82.5,227.01,226.97,30.12549]
[1738158935304,82.5,227.01,226.99,24.027864]
[1738158935887,82.5,227.01,226.99,0.25098]
[1738158936608,82.5,227.01,226.99,0.12549]
[1738158939128,82.5,227.06,227.02,0.25098]
[1738158939296,82.5,227.06,227.03,0.12549]
[1738158939990,12.8246161,227.05,226.99,3.12]
[1738158940627,12.8246161,227.05,227.0,0.37647]
[1738158941129,12.8546161,227.05,227.0,0.37647]
[1738158941913,12.8546161,227.05,227.0,0.25098]
[1738158942517,82.5,227.04,227.0,0.25098]
[1738158942819,95.3246161,227.03,226.99,0.063]
[1738158943609,82.5,227.03,226.99,0.31398]
[1738158944433,95.3246161,227.03,226.99,0.31398]
[1738158946536,12.8246161,227.01,226.99,0.063]
[1738158946702,12.8246161,227.0,226.99,0.063]
[1738158947507,95.3246161,227.02,226.99,0.063]
[1738158948027,82.5,227.02,226.99,0.063]
[1738158949058,95.3246161,227.02,226.99,0.063]
[1738158949202,12.8246161,227.01,226.99,0.063]
[1738158950736,82.5,227.02,226.99,0.063]
[1738158951730,82.5,227.02,226.99,0.18849]
[1738158952022,0.03,227.05,227.04,53.776884]
[1738158952231,0.03,227.05,227.04,66.6015001]
[1738158953049,0.03,227.05,227.04,61.9694446]
[1738158953832,0.03,227.05,227.04,64.91169813]
[1738158954243,0.03,227.05,227.04,376.91169813]
[1738158954544,0.03,227.05,227.04,381.07843977]
[1738158955442,0.03,227.05,227.04,73.48293977]
[1738158955645,0.03,227.05,227.04,73.9231329]
[1738158956146,0.03,227.05,227.04,86.72272867]
[1738158956319,0.03,227.05,227.04,86.28253554]
[1738158956522,0.03,227.07,227.06,32.351044]
[1738158956741,0.03,227.07,227.06,48.71076833]
[1738158958019,0.03,227.07,227.06,53.11486833]
[1738158958347,0.03,227.07,227.06,365.11486833]
[1738158958530,0.03,227.07,227.06,364.67473977]
[1738158958854,0.03,227.07,227.06,357.15063977]
[1738158959145,0.03,227.07,227.06,30.351044]
[1738158959441,0.03,227.07,227.06,22.49375577]
[1738158959646,0.03,227.07,227.06,22.36826577]
[1738158959849,0.03,227.07,227.06,0.37647]
[1738158961242,0.03,227.07,227.04,55.42]
[1738158961538,12.79959577,227.06,227.04,52.32]
[1738158961911,12.79959577,227.05,227.04,52.32]
[1738158967645,12.79959577,227.05,227.04,52.383]
[1738158969153,12.79959577,227.05,226.94,45.91959577]
[1738158969154,3.0,226.87,226.86,0.063]
[1738158969342,2.0,226.82,226.78,41.16704128]
[1738158969537,12.79959577,226.81,226.78,41.16704128]
[1738158970849,14.79959577,226.82,226.78,41.16704128]
[1738158971573,27.59919154,226.82,226.78,41.16704128]
[1738158971931,14.79959577,226.82,226.78,41.16704128]
[1738158972335,14.79959577,226.82,226.81,312.0]
[1738158973140,14.79959577,226.82,226.77,21.30347391]
[1738158974549,82.5,226.81,226.77,21.30347391]
[1738158976158,82.5,226.81,226.8,312.063]
[1738158977261,95.29959577,226.81,226.8,312.063]
[1738158977736,82.5,226.81,226.8,312.063]
[1738158978128,12.79959577,226.81,226.8,312.063]
[1738158979077,14.79959577,226.82,226.8,312.063]
[1738158979235,12.79959577,226.81,226.8,0.063]
[1738158981261,14.82959577,226.82,226.8,0.063]
[1738158981460,12.79959577,226.81,226.8,0.063]
[1738158982165,12.79959577,226.81,226.8,312.063]
[1738158984441,12.79959577,226.81,226.8,0.063]
[1738158984648,36.57647977,226.81,226.8,0.0001]
[1738158986166,12.79959577,226.81,226.8,0.0001]
[1738158990370,36.57647977,226.81,226.8,0.0001]
[1738158991992,36.63947977,226.81,226.8,0.0001]
[1738158993673,36.63947977,226.81,226.77,17.87907391]
[1738158993674,45.776884,226.78,226.77,17.87907391]
[1738158993865,58.70196977,226.78,226.77,17.08900732]
[1738158996864,34.79959577,226.78,226.77,17.08900732]
[1738158997178,82.5,226.8,226.77,17.08900732]
[1738158997354,82.5,226.8,226.79,0.37647]
[1738158997855,83.5,226.8,226.78,3.12]
[1738158998060,82.5,226.8,226.78,3.12]
[1738158999166,83.5,226.8,226.78,3.12]
[1738159000459,84.5,226.8,226.78,3.12]
[1738159004586,84.5,226.8,226.78,3.15]
[1738159006507,0.25098,226.91,226.78,3.15]
[1738159006508,1.0,226.9,226.83,1.87018]
[1738159006668,82.5,226.92,226.87,12.79959577]
[1738159007994,1.0,226.9,226.84,13.05057577]
[1738159008298,2.0,226.88,226.85,3.18]
[1738159009484,2.0,226.9,226.85,3.18]
[1738159009683,97.29959577,226.92,226.85,15.97959577]
[1738159010179,83.5,226.92,226.86,12.79959577]
[1738159011993,82.5,226.91,226.86,12.79959577]
[1738159014187,82.5,226.91,226.86,12.79959577]
[1738159015391,82.5,226.91,226.87,13.05057577]
[1738159016303,82.563,226.91,226.87,13.05057577]
[1738159017801,82.563,226.91,226.88,12.79959577]
[1738159018671,82.563,226.91,226.9,12.79959577]
[1738159018878,82.563,226.91,226.9,36.95294977]
[1738159018879,0.063,226.91,226.9,36.95294977]
[1738159019197,0.063,226.91,226.9,43.13234977]
[1738159019590,0.063,226.91,226.9,43.25783977]
[1738159020604,0.063,226.91,226.9,47.66503977]
[1738159021177,0.063,226.91,226.9,359.66503977]
[1738159021706,0.063,226.91,226.9,355.25783977]
[1738159021910,0.063,226.91,226.9,358.39783977]
[1738159022198,0.063,226.91,226.9,22.49546577]
[1738159024309,0.063,226.91,226.9,46.83839669]
[1738159025305,0.063,226.91,226.9,22.93602269]
[1738159025490,0.063,226.91,226.9,22.49546577]
[1738159027692,0.063,226.91,226.9,46.39783977]
[1738159028106,0.063,226.91,226.9,46.83836636]
[1738159028303,0.063,226.91,226.9,358.83836636]
[1738159028506,0.063,226.91,226.9,358.39783977]
[1738159028702,0.063,226.91,226.9,362.80503977]
[1738159030096,0.063,226.91,226.9,46.39783977]
[1738159030910,0.063,226.91,226.9,46.83838091]
[1738159033101,0.063,226.91,226.9,358.83838091]
[1738159033303,0.063,226.91,226.9,358.39783977]
[1738159033631,0.063,226.91,226.9,362.80503977]
[1738159034327,0.063,226.91,226.9,50.80503977]
[1738159034491,0.063,226.91,226.9,51.24554731]
[1738159034829,82.5,227.03,227.0,0.25098]
[1738159035031,82.5,227.03,227.0,13.05057577]
[1738159035521,82.5,227.03,227.01,12.79959577]
[1738159035830,82.5,227.03,227.02,3.12]
[1738159036601,82.5,227.03,227.02,16.17057577]
[1738159040726,82.563,227.03,227.02,16.17057577]
[1738159044732,82.563,227.03,227.02,3.37098]
[1738159045030,82.563,227.03,227.02,3.12]
[1738159045431,82.563,227.03,227.02,35.91959577]
[1738159048633,82.563,227.03,227.02,31.31527425]
[1738159049145,82.563,227.03,227.02,31.56625425]
[1738159049432,0.063,227.03,227.02,31.56625425]
[1738159049633,0.063,227.03,227.02,55.46862825]
[1738159049929,0.063,227.03,227.02,90.43928676]
[1738159050138,0.063,227.03,227.02,89.99891825]
[1738159050515,0.063,227.03,227.02,85.59411825]
[1738159051810,0.063,227.03,227.02,61.56625425]
[1738159052508,0.063,227.03,227.02,50.25098]
[1738159052716,0.063,227.03,226.98,8.19527425]
[1738159052908,0.063,227.03,226.99,3.12]
[1738159053125,0.063,227.03,227.0,20.0]
[1738159053523,0.063,227.03,227.01,8.19527425]
[1738159053738,0.063,227.03,227.02,82.34862825]
[1738159054528,0.063,227.03,227.02,86.95641893]
[1738159056643,0.063,227.03,227.02,44.153354]
[1738159057341,0.063,227.03,227.02,20.0]
[1738159057544,0.063,227.03,227.02,23.12]
[1738159057842,0.063,227.03,227.02,20.0]
[1738159058145,0.063,227.03,227.02,23.12]
[1738159060428,0.063,227.03,227.02,3.12]
[1738159062543,1.0,227.0,226.95,30.0]
[1738159062723,2.0,226.98,226.94,3.12]
[1738159063137,2.0,227.0,226.96,20.0]
[1738159063423,83.5,227.02,226.97,12.80306493]
[1738159063626,82.5,227.02,226.97,12.80306493]
[1738159063829,0.063,227.03,226.99,66.95641893]
[1738159064039,0.063,227.03,227.0,12.80306493]
[1738159065138,0.063,227.03,227.01,36.95641893]
[1738159065337,0.063,227.03,227.02,13.05404493]
[1738159066039,0.063,227.03,227.02,66.95641893]
[1738159066251,0.063,227.03,227.02,67.39677268]
[1738159066632,0.063,227.03,227.02,67.52226268]
[1738159067342,0.063,227.03,227.02,71.92706268]
[1738159068148,0.063,227.03,227.02,67.52226268]
[1738159068648,0.063,227.03,227.02,67.39677268]
[1738159070027,0.063,227.03,227.02,67.52226268]
[1738159070745,0.063,227.03,227.02,97.94012761]
[1738159070936,0.03,227.07,227.06,54.278844]
[1738159071246,0.03,227.07,227.06,70.64213497]
[1738159071937,0.03,227.07,227.06,3.12]
[1738159073048,13.83306493,227.07,227.0,42.80306493]
[1738159073231,13.83306493,227.07,227.05,3.12]
[1738159074156,13.83306493,227.07,227.01,3.12]
[1738159074157,1.0,227.03,227.01,3.12]
[1738159074444,1.0,227.03,227.0,3.12]
[1738159076150,1.0,227.04,227.0,3.12]
[1738159077435,1.0,227.05,227.0,3.12]
[1738159077635,1.0,227.05,227.0,15.92306493]
[1738159077951,1.0,227.05,227.01,12.80306493]
[1738159078169,0.03,227.07,227.03,12.80306493]
[1738159078330,0.03,227.07,227.04,12.80306493]
[1738159078952,0.03,227.07,227.05,12.80306493]
[1738159079848,0.03,227.07,227.06,12.80306493]
[1738159080151,0.03,227.07,227.06,13.05404493]
[1738159084043,0.03,227.07,227.06,66.95641893]
[1738159084638,0.03,227.07,227.06,62.34465537]
[1738159085954,0.03,227.07,227.06,66.74875537]
[1738159086156,0.03,227.07,227.06,66.87424537]
[1738159086962,0.03,227.07,227.06,24.153354]
[1738159087774,0.03,227.07,227.0,30.0]
[1738159087983,1.0,226.98,226.94,13.75660174]
[1738159088273,8.19130137,226.97,226.94,13.75660174]
[1738159088474,1.0,226.98,226.94,13.75660174]
[1738159088677,1.0,226.98,226.95,13.75660174]
[1738159089248,1.0,226.99,226.95,21.94790311]
[1738159089473,1.0,226.99,226.95,13.75660174]
[1738159089967,1.0,226.99,226.94,24.153354]
[1738159090874,1.0,227.03,226.99,43.902374]
[1738159091057,1.0,227.05,227.01,12.81493051]
[1738159091267,2.0,227.06,227.0,15.91493051]
[1738159091472,2.0,227.06,227.0,3.1]
[1738159092153,2.0,227.06,227.02,0.25098]
[1738159092358,0.03,227.07,227.04,12.81493051]
[1738159092769,0.03,227.07,227.03,12.81493051]
[1738159093279,0.03,227.07,227.02,0.25098]
[1738159093280,0.03,227.07,227.04,32.81493051]
[1738159095395,0.03,227.07,227.06,13.06591051]
[1738159095777,0.03,227.07,227.06,36.96828451]
[1738159097210,0.03,227.07,227.04,12.81493051]
[1738159097398,82.5,227.06,227.02,12.81493051]
[1738159097600,83.5,227.06,227.01,12.81493051]
[1738159097907,84.5,227.06,227.02,0.25098]
[1738159098082,2.0,227.04,227.02,3.1]
[1738159098471,84.5,227.06,227.02,3.1]
[1738159098678,82.5,227.06,227.03,0.25098]
[1738159099242,82.5,227.06,227.04,20.0]
[1738159100401,82.5,227.06,227.05,20.0]
[1738159100582,82.5,227.06,227.05,12.81493051]
[1738159101106,82.5,227.06,227.04,32.81493051]
[1738159101899,82.5,227.06,227.05,12.81493051]
[1738159102103,82.5,227.06,227.05,36.96828451]
[1738159102892,0.03,227.07,227.06,24.278844]
[1738159103100,0.063,227.11,227.1,74.278844]
[1738159103403,0.063,227.11,227.1,87.53389812]
[1738159103608,0.063,227.11,227.1,87.09377451]
[1738159103920,0.063,227.11,227.1,91.49707451]
[1738159105305,0.063,227.11,227.1,403.49707451]
[1738159109325,0.063,227.11,227.1,91.49707451]
[1738159110327,0.063,227.14,227.13,54.278844]
[1738159110488,82.5,227.25,227.21,20.37647]
[1738159110694,82.5,227.25,227.24,12.81493051]
[1738159111315,82.5,227.25,227.24,13.06591051]
[1738159112815,82.563,227.25,227.24,13.06591051]
[1738159113811,0.063,227.25,227.24,0.37647]
[1738159114001,0.063,227.25,227.24,67.40824791]
[1738159114816,0.063,227.25,227.24,71.93433791]
[1738159117826,0.063,227.25,227.24,385.70556656]
[1738159118117,0.063,227.25,227.24,385.26560316]
[1738159118331,0.063,227.25,227.24,404.52253367]
[1738159119601,0.03,227.28,227.24,404.52253367]
[1738159119800,0.03,227.28,227.27,87.09377451]
[1738159120018,0.03,227.3,227.28,0.50196]
[1738159120218,0.03,227.3,227.29,13.25470119]
[1738159120611,0.03,227.3,227.29,37.53354519]
[1738159121014,0.03,227.3,227.29,41.93314519]
[1738159121208,0.03,227.3,227.29,29.11821468]
[1738159121626,0.03,227.31,227.3,54.278844]
[1738159122618,0.03,227.31,227.3,58.678244]
[1738159122815,0.03,227.31,227.3,371.11795738]
[1738159123015,0.03,227.31,227.3,370.678244]
[1738159123735,0.03,227.31,227.3,366.278844]
[1738159124042,0.03,227.31,227.3,33.60196]
[1738159124327,0.03,227.31,227.3,57.378844]
[1738159124628,0.03,227.31,227.3,57.81862399]
[1738159125626,0.03,227.31,227.3,33.47647]
[1738159125834,0.03,227.31,227.3,23.47647]
[1738159127338,0.03,227.31,227.3,23.60196]
[1738159127508,0.03,227.31,227.3,3.47647]
[1738159127840,0.03,227.31,227.3,3.60196]
[1738159128044,0.03,227.31,227.3,23.60196]
[1738159130928,0.03,227.31,227.3,3.1]
[1738159131416,0.03,227.31,227.28,20.0]
[1738159131618,0.03,227.31,227.29,3.1]
[1738159133105,0.03,227.31,227.3,3.1]
[1738159139336,1.03,227.31,227.29,3.13]
[1738159140129,83.5,227.3,227.29,3.13]
[1738159140315,1.0,227.3,227.29,0.03]
[1738159140517,13.76497513,227.3,227.29,0.03]
[1738159140725,15.40247513,227.3,227.29,0.03]
[1738159141544,2.6375,227.3,227.29,0.03]
[1738159144347,15.40247513,227.3,227.29,0.03]
[1738159146228,1.0,227.18,227.17,52.26]
[1738159147151,1.0,227.18,227.17,55.36]
[1738159147350,1.0,227.19,227.17,55.36]
[1738159147736,1.0,227.18,227.17,55.36]
[1738159148446,1.0,227.19,227.17,55.36]
[1738159151631,1.0,227.22,227.18,24.278844]
[1738159152325,1.0,227.21,227.18,24.278844]
[1738159152540,1.0,227.2,227.18,24.278844]
[1738159153626,1.0,227.2,227.18,336.278844]
[1738159154033,1.0,227.21,227.18,336.278844]
[1738159154238,1.0,227.2,227.18,336.278844]
[1738159155927,1.0,227.2,227.17,55.36]
[1738159156256,1.0,227.19,227.18,3.1]
[1738159160032,83.5,227.18,227.17,52.26]
[1738159160252,13.76497513,227.18,227.17,52.26]
[1738159167570,13.76497513,227.18,227.17,52.2356]
[1738159167769,13.76497513,227.18,227.17,52.2295]
[1738159170574,40.04381913,227.18,227.17,48.02893784]
[1738159171865,20.0,227.15,227.13,0.03]
[1738159172069,12.76497513,227.14,227.13,0.03]
[1738159172369,13.76497513,227.14,227.13,0.03]
[1738159172576,14.76497513,227.14,227.13,0.03]
[1738159176569,10.19654617,227.14,227.13,0.03]
[1738159176947,2.0,227.08,227.07,0.03]
[1738159177153,10.19654617,227.08,227.07,0.03]
[1738159183576,2.0,227.08,227.07,0.03]
[1738159184305,2.0,227.1,227.07,0.03]
[1738159185679,1.0,227.1,227.07,0.03]
[1738159185886,1.0,227.09,227.07,0.03]
[1738159186182,1.0,227.12,227.08,24.278844]
[1738159186483,1.0,227.14,227.12,24.278844]
[1738159186661,1.6409,227.25,227.12,24.278844]
[1738159186662,1.0,227.17,227.13,3.1]
[1738159186979,1.0,227.15,227.13,3.1]
[1738159187178,2.0,227.15,227.13,3.1]
[1738159188483,1.0,227.15,227.13,3.1]
[1738159188672,2.0,227.17,227.13,3.1]
[1738159190169,1.0,227.17,227.13,3.1]
[1738159191985,82.5,227.16,227.13,3.1]
[1738159193686,1.0,227.19,227.16,0.50196]
[1738159193988,83.5,227.21,227.16,0.50196]
[1738159193989,84.5,227.21,227.16,0.50196]
[1738159195188,1.0,227.19,227.16,0.50196]
[1738159195389,2.0,227.12,227.07,8.1485]
[1738159195591,2.0,227.12,227.08,0.37647]
[1738159196088,2.0,227.12,227.09,0.12549]
[1738159197991,1.0,227.12,227.09,0.12549]
[1738159198487,2.0,227.14,227.11,20.0]
[1738159198877,1.0,227.14,227.12,0.50196]
[1738159199186,1.0,227.15,227.12,20.50196]
[1738159199387,1.0,227.13,227.1,20.0]
[1738159199796,2.0,227.11,227.07,11.2485]
[1738159200169,2.0,227.11,227.08,24.278844]
[1738159201500,1.0,227.11,227.08,24.278844]
[1738159201789,1.0,227.13,227.08,28.682344]
[1738159201992,1.0,227.14,227.11,20.0]
[1738159202193,1.0,227.13,227.11,20.0]
[1738159202398,2.0,227.13,227.11,20.0]
[1738159203194,1.0,227.13,227.11,20.0]
[1738159203369,2.0,227.13,227.08,336.278844]
[1738159203574,1.0,227.11,227.08,336.278844]
[1738159204191,1.0,227.11,227.1,44.278844]
[1738159205199,2.0,227.13,227.1,44.278844]
[1738159205395,2.0,227.09,227.07,1.5808]
[1738159205600,2.0,227.09,227.08,3.1]
[1738159206097,1.0,227.11,227.08,27.378844]
[1738159206303,1.0,227.13,227.09,24.278844]
[1738159206593,1.0,227.12,227.09,0.50196]
[1738159206898,82.5,227.11,227.09,24.278844]
[1738159208179,82.5,227.11,227.09,336.278844]
[1738159208796,82.5,227.11,227.09,340.682344]
[1738159210003,82.5,227.11,227.09,336.278844]